Workbook

Sheet Reconcile Example
A1: Facts:
B2: Accounts Receivable
D3: Opening | E3: Closing
B5: Wheat | D5: 50000 | E5: 30000
B6: Crop Insurance | D6: 20000 | E6: -
B7: Barley | D7: 10000 | E7: -
D8: 80000 | E8: 30000
B10: Accounts Payable
D11: Opening | E11: Closing
B13: Cattle | D13: 150000 | E13: 25000
B14: Equipment rental | D14: - | E14: 5000
B15: Accounting fees | D15: 5000 | E15: 3000
B16: Fuel & oil | D16: 2000 | E16: -
B17: Agriculture contract work | D17: 2000
D18: 159000 | E18: 263000
B20: Prepaid Expenses
D21: Opening | E21: Closing
B23: Fertilizer | D23: 20000 | E23: 50000
A26: Reconciliation of Net Income for Tax Purposes T2 Schedule 1
B28: Net Income per Financial Statements | E28: 90000
A30: Add: | B30: Depreciation | D30: 70000
B31: Opening inventory | D31: 800000
B32: Opening accounts receivable / prepaid | D32: 100000
B33: Closing accounts payable | D33: 263000
B34: Current year optional inventory adj | D34: 120000
E35: 1353000
A37: Deduct: | B37: Dividend income | D37: 50000
B38: Closing inventory | D38: 60000
B39: Closing accounts receivable / prepaid | D39: 80000
B40: Opening accounts payable | D40: 159000
B41: Prior year optional inventory adj | D41: 140000
B42: Gain on sale | D42: 4000
B43: Capital cost allowance | D43: 80000
E44: 1113000
A46: Income from Business or Property
B47: Taxable capital gain | E47: 3000
A49: Net Income for Tax Purposes | E49: 333000

Sheet Worksheet ExampleOld (hidden)
E1: Financial Statements: Statement of Income (Loss) | I1: Net Income (Loss) for Income Tax Purposes
B2: Revenue
D4: T1163 | F4: Opening | H4: Closing
B5: Commodity Sales and Program Payments | D5: Code | E5: Accrual + | F5: Receivables | G5: - | H5: Receivables | I5: = | J5: Cash/Tax
B6: Wheat | D6: 56 | E6: 200000 | F6: 50000 | H6: 30000 | J6: =E6+F6-H6 -> 220000
B7: Barley | D7: 3 | E7: 300000 | F7: 10000 | J7: =E7+F7-H7 -> 310000
B8: Oats | D8: 45 | E8: 56000 | J8: 56000
B9: Cattle, Feeder | D9: 721 | E9: 1200000 | J9: 1200000
B10: Crop Insurance: Grains & Oilseeds | D10: 401 | E10: 40000 | F10: 20000 | J10: 60000
J11: 0
J12: 0
B13: Total A | D13: 9950 | E13: =SUM(E6:E12) -> 1796000 | F13: =SUM(F6:F12) -> 80000 | H13: =SUM(H6:H12) -> 30000 | J13: =SUM(J6:J12) -> 1846000
F15: Opening | H15: Closing
B16: Other Farming Income | D16: Line | E16: Accrual + | F16: Receivables | G16: - | H16: Receivables | I16: = | J16: Cash/Tax
B17: Other program payments | D17: 9540
B18: Business Risk Management (BRM) and disaster assistance program payments | D18: 9544
B19: Resales, Rebates, GST/HST for allowable exp | D19: 9574
B20: Resales, Rebates, GST/HST for non-allowable expenses | D20: 9575
B21: Agricultural contract work | D21: 9601
B22: Patronage dividends | D22: 9605
B23: Interest | D23: 9607
B24: Gravel | D24: 9610
B25: Trucking (farm - related only) | D25: 9611
B26: Resales of commodities purchased | D26: 9612
B27: Leases (gas, oil well, surface, etc.) | D27: 9613
B28: Machine rentals | D28: 9614
B29: Other (specify) | D29: 9600
B31: Total B | E31: - | F31: - | H31: - | J31: -
B33: Total Revenue (Total A + Total B) | E33: 1796000 | F33: 80000 | H33: 30000 | J33: 1846000
B35: Inventory
E37: Accrual | G37: Opening | I37: Closing
G38: Inventories | I38: Inventories | J38: Cash/Tax
B39: Opening Inventory | E39: 800000 | G39: -800000
B40: Closing Inventory | E40: 600000 | I40: -600000
B42: Change in Inventory | E42: -200000 | G42: 800000 | I42: -600000
B44: Expenses
B46: Commodity Purchases and | D46: T1163 | F46: Opening | G46: Closing | H46: Closing | I46: Opening
B47: Repayment of Program Benefits | D47: Code | E47: Accrual | F47: + Payables | G47: + Prepaids | H47: - Payables | I47: - Prepaids | J47: Cash/Tax
B48: Point of Sale Adjustments | D48: 575 | J48: =F48+G48-H48-I48 -> 0
B49: Forage (Including Pellets, Silage) | D49: =IF(B49="","",VLOOKUP(B49,[3]!AllowableCode,2,FALSE)) -> 264 | E49: 675000 | J49: =F49+G49-H49-I49 -> 0
B50: Wheat | D50: =IF(B50="","",VLOOKUP(B50,[3]!AllowableCode,2,FALSE)) -> 56 | E50: 10000 | J50: 0
B51: Barley | D51: =IF(B51="","",VLOOKUP(B51,[3]!AllowableCode,2,FALSE)) -> 3 | E51: 10000 | J51: 0
B52: Oats | D52: =IF(B52="","",VLOOKUP(B52,[3]!AllowableCode,2,FALSE)) -> 45 | E52: 5000 | J52: 0
B53: Cattle, Feeder | D53: =IF(B53="","",VLOOKUP(B53,[3]!AllowableCode,2,FALSE)) -> 721 | E53: 500000 | F53: 150000 | H53: 250000 | J53: -100000
J54: 0
J55: 0
J56: 0
B57: Total C | E57: =SUM(E48:E56) -> 1200000 | F57: =SUM(F48:F56) -> 150000 | G57: 0 | H57: 250000 | I57: 0 | J57: =SUM(J48:J56) -> -100000
F59: Opening | G59: Closing | H59: Closing | I59: Opening
B60: Allowable Expenses | D60: Line | E60: Accrual | F60: + Payables | G60: + Prepaids | H60: - Payables | I60: - Prepaids | J60: = Cash/Tax
B61: Containers and twine | D61: 9661 | E61: 60000 | G61: 50000 | I61: 20000 | J61: =F61+G61-H61-I61 -> 30000
B62: Fertilizers and soil supplements | D62: 9662 | J62: =F62+G62-H62-I62 -> 0
B63: Pesticides and chemical treatments | D63: 9663 | E63: 7000 | J63: 0
B64: Insurance premiums (crop or production) | D64: 9665 | J64: 0
B65: Veterinary fees, medicine, and breeding fees | D65: 9713 | J65: 0
B66: Minerals and salts | D66: 9714 | J66: 0
B67: Machinery (gasoline, diesel fuel, oil) | D67: 9764 | E67: 80000 | F67: 2000 | J67: 2000
B68: Electricity | D68: 9799 | E68: 4000 | J68: 0
B69: Freight and shipping | D69: 9801 | J69: 0
B70: Heating fuel | D70: 9802 | J70: 0
B71: Arm's length salaries | D71: 9815 | J71: 0
B72: Storage and drying | D72: 9822 | J72: 0
B73: Commissions and levies | D73: 9836 | J73: 0
B74: Private insurance premiums for commodities | D74: 9953 | J74: 0
J75: 0
B76: Total D | E76: =SUM(E61:E75) -> 151000 | F76: 2000 | G76: 50000 | H76: 0 | I76: 20000 | J76: =SUM(J61:J75) -> 32000
F78: Opening | G78: Closing | H78: Closing | I78: Opening
B79: Non-Allowable Expenses | D79: Line | E79: Accrual | F79: + Payables | G79: + Prepaids | H79: - Payables | I79: - Prepaids | J79: = Cash/Tax
B80: Machinery (repairs, licenses, insurance) | D80: 9760 | J80: =F80+G80-H80-I80 -> 0
B81: Machinery lease/rental | D81: 9765 | E81: 6000 | H81: 5000 | J81: =F81+G81-H81-I81 -> -5000
B82: Advertising and promotion costs | D82: 9792 | J82: 0
B83: Building and fence repairs | D83: 9795 | E83: 1000 | J83: 0
B84: Land clearing and draining | D84: 9796 | J84: 0
B85: Agricultural contract work | D85: 9798 | E85: 45000 | F85: 2000 | H85: 5000 | J85: -3000
B86: Other insurance premiums | D86: 9804 | E86: 1000 | J86: 0
B87: Interest (real estate, mortgage, other) | D87: 9805 | E87: 46000 | J87: 0
B88: Memberships/subscription fees | D88: 9807 | J88: 0
B89: Office expenses | D89: 9808 | J89: 0
B90: Legal and accounting fees | D90: 9809 | E90: 5000 | F90: 5000 | H90: 3000 | J90: 2000
B91: Property taxes | D91: 9810 | J91: 0
B92: Rent (land, buildings, pastures) | D92: 9811 | E92: 30000 | J92: 0
B93: Non-arm's length salaries | D93: 9816 | J93: 0
B94: Motor vehicle expenses | D94: 9819 | J94: 0
B95: Small tools | D95: 9820 | E95: 3000 | J95: 0
B96: Soil testing | D96: 9821 | J96: 0
B97: Licenses/permits | D97: 9823 | J97: 0
B98: Telephone | D98: 9824 | J98: 0
B99: Quota rental (tobacco, dairy) | D99: 9825 | J99: 0
B100: Gravel | D100: 9826 | J100: 0
B101: Purchases of commodities resold | D101: 9827 | J101: 0
B102: Motor vehicle interest and leasing costs | D102: 9829 | J102: 0
B103: Other (specify) | D103: 9896 | E103: 2000 | J103: 0
J104: 0
J105: 0
B106: Total E | E106: =SUM(E80:E105) -> 139000 | F106: =SUM(F80:F105) -> 7000 | G106: 0 | H106: 13000 | I106: 0 | J106: -6000
B108: Total Expense (Total C + Total D + Total E) | E108: =E57+E76+E106 -> 1490000 | F108: =F57+F76+F106 -> 159000 | G108: 50000 | H108: 263000 | I108: 20000 | J108: -74000
B110: Other Adjustments | E110: Accrual | I110: Cash/Tax
C111: ` | E111: Add | F111: Deduct | I111: Add | J111: Deduct
B112: Depreciation | F112: 70000
B113: Gain on sale | E113: 4000
B114: Loss on sale
B115: Dividend Income | E115: 50000
B117: Taxable capital gains | D117: 9600 | I117: 3000
B118: Allowance on eligible capital property | D118: 9935
B119: Capital cost allowance | D119: 9936 | J119: 80000
B120: Mandatory Inventory Adjustment Prior Year | D120: 9937
B121: Optional Inventory Adjustment Prior Year | D121: 9938 | J121: 140000
B122: Optional Inventory Adjustment Current Year | D122: 9941 | I122: 120000
B123: Mandatory Inventory Adjustment Current Year | D123: 9942
B126: Total Other Adjustments | E126: =SUM(E112:E124) -> 54000 | F126: =-SUM(F112:F124) -> -70000 | I126: =SUM(I112:I124) -> 123000 | J126: =-SUM(J112:J124) -> -220000
B128: Accrual Income/Loss
B130: Worksheet | E130: =E33+E42-E108+E126+F126 -> 90000 | H130: Worksheet | J130: =J33+J42-J108+I126+J126 -> 1823000
B131: T2 (Sch 1) | E131: 90000 | H131: T2 (Sch 1) | J131: 333000
B132: Difference | H132: Difference

Sheet Worksheet Example
D1: Fiscal Period: | E1: Year | G1: Month | I1: Day
B4: Business Name | D4: Identification Number | F4: Subscription | H4: AgriStability PIN | J4: Year
E8: Financial Statements: Statement of Income (Loss) | H8: Net Income (Loss) for Income Tax Purposes
B9: Revenue
D11: T1163 | F11: Opening | H11: Closing
B12: Commodity Sales and Program Payments | D12: Code | E12: Accrual + | F12: Receivables | G12: - | H12: Receivables | I12: = | J12: Cash/Tax
D13: =IF(ISBLANK(B13),"",VLOOKUP(B13,'Tax Codes'!$A$2:$B$305,2,FALSE)) ->  | J13: =(E13+F13-H13) -> 0
D14: =IF(ISBLANK(B14),"",VLOOKUP(B14,'Tax Codes'!$A$2:$B$305,2,FALSE)) ->  | J14: =(E14+F14-H14) -> 0
D15: =IF(ISBLANK(B15),"",VLOOKUP(B15,'Tax Codes'!$A$2:$B$305,2,FALSE)) ->  | J15: 0
D16: =IF(ISBLANK(B16),"",VLOOKUP(B16,'Tax Codes'!$A$2:$B$305,2,FALSE)) ->  | J16: 0
D17: =IF(ISBLANK(B17),"",VLOOKUP(B17,'Tax Codes'!$A$2:$B$305,2,FALSE)) ->  | J17: 0
D18: =IF(ISBLANK(B18),"",VLOOKUP(B18,'Tax Codes'!$A$2:$B$305,2,FALSE)) ->  | J18: 0
D19: =IF(ISBLANK(B19),"",VLOOKUP(B19,'Tax Codes'!$A$2:$B$305,2,FALSE)) ->  | J19: 0
D20: =IF(ISBLANK(B20),"",VLOOKUP(B20,'Tax Codes'!$A$2:$B$305,2,FALSE)) ->  | J20: 0
D21: =IF(ISBLANK(B21),"",VLOOKUP(B21,'Tax Codes'!$A$2:$B$305,2,FALSE)) ->  | J21: 0
D22: =IF(ISBLANK(B22),"",VLOOKUP(B22,'Tax Codes'!$A$2:$B$305,2,FALSE)) ->  | J22: 0
D23: =IF(ISBLANK(B23),"",VLOOKUP(B23,'Tax Codes'!$A$2:$B$305,2,FALSE)) ->  | J23: 0
D24: =IF(ISBLANK(B24),"",VLOOKUP(B24,'Tax Codes'!$A$2:$B$305,2,FALSE)) ->  | J24: 0
D25: =IF(ISBLANK(B25),"",VLOOKUP(B25,'Tax Codes'!$A$2:$B$305,2,FALSE)) ->  | J25: 0
D26: =IF(ISBLANK(B26),"",VLOOKUP(B26,'Tax Codes'!$A$2:$B$305,2,FALSE)) ->  | J26: 0
D27: =IF(ISBLANK(B27),"",VLOOKUP(B27,'Tax Codes'!$A$2:$B$305,2,FALSE)) ->  | J27: 0
D28: =IF(ISBLANK(B28),"",VLOOKUP(B28,'Tax Codes'!$A$2:$B$305,2,FALSE)) ->  | J28: 0
D29: =IF(ISBLANK(B29),"",VLOOKUP(B29,'Tax Codes'!$A$2:$B$305,2,FALSE)) ->  | J29: 0
D30: =IF(ISBLANK(B30),"",VLOOKUP(B30,'Tax Codes'!$A$2:$B$305,2,FALSE)) ->  | J30: 0
D31: =IF(ISBLANK(B31),"",VLOOKUP(B31,'Tax Codes'!$A$2:$B$305,2,FALSE)) ->  | J31: 0
D32: =IF(ISBLANK(B32),"",VLOOKUP(B32,'Tax Codes'!$A$2:$B$305,2,FALSE)) ->  | J32: 0
D33: =IF(ISBLANK(B33),"",VLOOKUP(B33,'Tax Codes'!$A$2:$B$305,2,FALSE)) ->  | J33: 0
D34: =IF(ISBLANK(B34),"",VLOOKUP(B34,'Tax Codes'!$A$2:$B$305,2,FALSE)) ->  | J34: 0
D35: =IF(ISBLANK(B35),"",VLOOKUP(B35,'Tax Codes'!$A$2:$B$305,2,FALSE)) ->  | J35: 0
B36: Total A | E36: =SUM(E13:E35) -> 0 | F36: =SUM(F13:F35) -> 0 | H36: =SUM(H13:H35) -> 0 | J36: =SUM(J13:J35) -> 0
F38: Opening | H38: Closing
B39: Other Farming Income | D39: Line | E39: Accrual + | F39: Receivables | G39: - | H39: Receivables | I39: = | J39: Cash/Tax
B40: Other program payments | D40: 9540 | J40: =(E40+F40-H40) -> 0
B41: Business Risk Management (BRM) and disaster assistance program payments | D41: 9544 | J41: =(E41+F41-H41) -> 0
B42: Resales, Rebates, GST/HST for allowable exp | D42: 9574 | J42: 0
B43: Resales, Rebates, GST/HST for non-allowable expenses | D43: 9575 | J43: 0
B44: Agricultural contract work | D44: 9601 | J44: 0
B45: Patronage dividends | D45: 9605 | J45: 0
B46: Interest | D46: 9607 | J46: 0
B47: Gravel | D47: 9610 | J47: 0
B48: Trucking (farm - related only) | D48: 9611 | J48: 0
B49: Resales of commodities purchased | D49: 9612 | J49: 0
B50: Leases (gas, oil well, surface, etc.) | D50: 9613 | J50: 0
B51: Machine rentals | D51: 9614 | J51: 0
B52: Other (specify) | D52: 9600 | J52: 0
J53: 0
J54: 0
J55: =(E55+F55-H55) -> 0
J56: 0
B57: Total B | E57: =SUM(E40:E56) -> 0 | F57: =SUM(F40:F56) -> 0 | H57: =SUM(H40:H56) -> 0 | J57: =SUM(J40:J56) -> 0
B59: Total Revenue (Total A + Total B) | E59: =(E36+E57) -> 0 | F59: =(F36+F57) -> 0 | H59: =(H36+H57) -> 0 | J59: =(J36+J57) -> 0
B61: AB3007 | I61: Form A5013-01
B64: Inventory
G65: Opening | I65: Closing
E66: Accrual | G66: Inventories | I66: Inventories | J66: Cash/Tax
B67: Opening Inventory | G67: =-E67 -> 0 | J67: =(E67+G67) -> 0
B68: Closing Inventory | I68: =-E68 -> 0 | J68: =(E68+I68) -> 0
B70: Change in Inventory | E70: =E68-E67 -> 0 | G70: =G68-G67 -> 0 | I70: =(I68-I67) -> 0 | J70: =(J68-J37) -> 0
B74: Expenses
B76: Commodity Purchases and | D76: T1163 | F76: Opening | G76: Closing | H76: Closing | I76: Opening
B77: Repayment of Program Benefits | D77: Code | E77: Accrual | F77: + Payables | G77: + Prepaids | H77: - Payables | I77: - Prepaids | J77: Cash/Tax
B78: Point of Sale Adjustments | D78: 575 | J78: =E78+F78+G78-H78-I78 -> 0
D79: =IF(ISBLANK(B79),"",VLOOKUP(B79,'Tax Codes'!$A$2:$B$305,2,FALSE)) ->  | J79: =E79+F79+G79-H79-I79 -> 0
D80: =IF(ISBLANK(B80),"",VLOOKUP(B80,'Tax Codes'!$A$2:$B$305,2,FALSE)) ->  | J80: 0
D81: =IF(ISBLANK(B81),"",VLOOKUP(B81,'Tax Codes'!$A$2:$B$305,2,FALSE)) ->  | J81: 0
D82: =IF(ISBLANK(B82),"",VLOOKUP(B82,'Tax Codes'!$A$2:$B$305,2,FALSE)) ->  | J82: 0
D83: =IF(ISBLANK(B83),"",VLOOKUP(B83,'Tax Codes'!$A$2:$B$305,2,FALSE)) ->  | J83: 0
D84: =IF(ISBLANK(B84),"",VLOOKUP(B84,'Tax Codes'!$A$2:$B$305,2,FALSE)) ->  | J84: 0
D85: =IF(ISBLANK(B85),"",VLOOKUP(B85,'Tax Codes'!$A$2:$B$305,2,FALSE)) ->  | J85: 0
D86: =IF(ISBLANK(B86),"",VLOOKUP(B86,'Tax Codes'!$A$2:$B$305,2,FALSE)) ->  | J86: 0
D87: =IF(ISBLANK(B87),"",VLOOKUP(B87,'Tax Codes'!$A$2:$B$305,2,FALSE)) ->  | J87: 0
D88: =IF(ISBLANK(B88),"",VLOOKUP(B88,'Tax Codes'!$A$2:$B$305,2,FALSE)) ->  | J88: 0
D89: =IF(ISBLANK(B89),"",VLOOKUP(B89,'Tax Codes'!$A$2:$B$305,2,FALSE)) ->  | J89: 0
D90: =IF(ISBLANK(B90),"",VLOOKUP(B90,'Tax Codes'!$A$2:$B$305,2,FALSE)) ->  | J90: 0
D91: =IF(ISBLANK(B91),"",VLOOKUP(B91,'Tax Codes'!$A$2:$B$305,2,FALSE)) ->  | J91: 0
D92: =IF(ISBLANK(B92),"",VLOOKUP(B92,'Tax Codes'!$A$2:$B$305,2,FALSE)) ->  | J92: 0
D93: =IF(ISBLANK(B93),"",VLOOKUP(B93,'Tax Codes'!$A$2:$B$305,2,FALSE)) ->  | J93: 0
D94: =IF(ISBLANK(B94),"",VLOOKUP(B94,'Tax Codes'!$A$2:$B$305,2,FALSE)) ->  | J94: 0
D95: =IF(ISBLANK(B95),"",VLOOKUP(B95,'Tax Codes'!$A$2:$B$305,2,FALSE)) ->  | J95: 0
D96: =IF(ISBLANK(B96),"",VLOOKUP(B96,'Tax Codes'!$A$2:$B$305,2,FALSE)) ->  | J96: 0
D97: =IF(ISBLANK(B97),"",VLOOKUP(B97,'Tax Codes'!$A$2:$B$305,2,FALSE)) ->  | J97: 0
B98: Total C | E98: =SUM(E78:E97) -> 0 | F98: =SUM(F78:F97) -> 0 | G98: 0 | H98: 0 | I98: 0 | J98: 0
F100: Opening | G100: Closing | H100: Closing | I100: Opening
B101: Allowable Expenses | D101: Line | E101: Accrual | F101: + Payables | G101: + Prepaids | H101: - Payables | I101: - Prepaids | J101: = Cash/Tax
B102: Containers and twine | D102: 9661 | J102: =(E102+F102+G102-H102-I102) -> 0
B103: Fertilizers and soil supplements | D103: 9662 | J103: =(E103+F103+G103-H103-I103) -> 0
B104: Pesticides and chemical treatments | D104: 9663 | J104: 0
B105: Insurance premiums (crop or production) | D105: 9665 | J105: 0
B106: Veterinary fees, medicine, and breeding fees | D106: 9713 | J106: 0
B107: Minerals and salts | D107: 9714 | J107: 0
B108: Machinery (gasoline, diesel fuel, oil) | D108: 9764 | J108: 0
B109: Electricity | D109: 9799 | J109: 0
B110: Freight and shipping | D110: 9801 | J110: 0
B111: Heating fuel | D111: 9802 | J111: 0
B112: Arm's length salaries | D112: 9815 | J112: 0
B113: Storage and drying | D113: 9822 | J113: 0
B114: Commissions and levies | D114: 9836 | J114: 0
B115: Private insurance premiums for commodities | D115: 9953 | J115: 0
J116: 0
J117: 0
J118: =(E118+F118+G118-H118-I118) -> 0
B119: Total D | E119: =SUM(E102:E118) -> 0 | F119: 0 | G119: 0 | H119: 0 | I119: 0 | J119: 0
F121: Opening | G121: Closing | H121: Closing | I121: Opening
B122: Non-Allowable Expenses | D122: Line | E122: Accrual | F122: + Payables | G122: + Prepaids | H122: - Payables | I122: - Prepaids | J122: = Cash/Tax
B123: Machinery (repairs, licenses, insurance) | D123: 9760 | J123: =(E123+F123+G123-H123-I123) -> 0
B124: Machinery lease/rental | D124: 9765 | J124: =(E124+F124+G124-H124-I124) -> 0
B125: Advertising and promotion costs | D125: 9792 | J125: 0
B126: Building and fence repairs | D126: 9795 | J126: 0
B127: Land clearing and draining | D127: 9796 | J127: 0
B128: Agricultural contract work | D128: 9798 | J128: 0
B129: Other insurance premiums | D129: 9804 | J129: 0
B130: Interest (real estate, mortgage, other) | D130: 9805 | J130: 0
B131: Memberships/subscription fees | D131: 9807 | J131: 0
B132: Office expenses | D132: 9808 | J132: 0
B133: Legal and accounting fees | D133: 9809 | J133: 0
B134: Property taxes | D134: 9810 | J134: 0
B135: Rent (land, buildings, pastures) | D135: 9811 | J135: 0
B136: Non-arm's length salaries | D136: 9816 | J136: 0
B137: Motor vehicle expenses | D137: 9819 | J137: 0
B138: Small tools | D138: 9820 | J138: 0
B139: Soil testing | D139: 9821 | J139: 0
B140: Licenses/permits | D140: 9823 | J140: 0
B141: Telephone | D141: 9824 | J141: 0
B142: Quota rental (tobacco, dairy) | D142: 9825 | J142: 0
B143: Gravel | D143: 9826 | J143: 0
B144: Purchases of commodities resold | D144: 9827 | J144: 0
B145: Motor vehicle interest and leasing costs | D145: 9829 | J145: 0
B146: Other (specify) | D146: 9896 | J146: 0
J147: 0
J148: 0
J149: 0
J150: 0
J151: 0
J152: 0
B153: Total E | E153: =SUM(E123:E152) -> 0 | F153: =SUM(F123:F152) -> 0 | G153: 0 | H153: 0 | I153: 0 | J153: 0
B155: Total Expense (Total C + Total D + Total E) | E155: =(E98+E119+E153) -> 0 | F155: =(F98+F119+F153) -> 0 | G155: 0 | H155: 0 | I155: 0 | J155: 0
B158: Other Adjustments | E158: Accrual | I158: Cash/Tax
C159: ` | E159: Add | F159: Deduct | I159: Add | J159: Deduct
B160: Depreciation
B161: Gain on sale
B162: Loss on sale
B163: Dividend Income
B169: Taxable capital gains | D169: 9600
B170: Allowance on eligible capital property | D170: 9935
B171: Capital cost allowance | D171: 9936
B172: Mandatory Inventory Adjustment Prior Year | D172: 9937
B173: Optional Inventory Adjustment Prior Year | D173: 9938
B174: Optional Inventory Adjustment Current Year | D174: 9941
B175: Mandatory Inventory Adjustment Current Year | D175: 9942
B182: Total Other Adjustments | E182: =SUM(E160:E180) -> 0 | F182: =-SUM(F160:F180) -> 0 | I182: =SUM(I160:I180) -> 0 | J182: =-SUM(J160:J180) -> 0
B185: Accrual Income/Loss | H185: Cash Income/Loss
B187: Worksheet | E187: =(E59+E70-E155+E182+F182) -> 0 | H187: Worksheet | J187: =(J59+J70-J155+J182+I182) -> 0
B188: Income (Loss) before Income Taxes | H188: T2 (Sch 1)
B189: Difference | E189: =E187-E188 -> 0 | H189: Difference | J189: =J187-J188 -> 0
B191: Disclaimer of Use
B192: The 2024 Corporate Accrual to Tax Conversion Worksheet is a preliminary form containing RC4060 codes from 2023. The 2024 Corporate Accrual to Tax Conversion Worksheet is subject to change following the release of the 2024 RC4060 commodity and program payment codes as provided by the Canadian Revenue Agency (CRA). The CRA release date for RC4060 codes is unknown. The form will be updated following the release of RC4060 codes. AFSC does not warrant or represent that the information within the preliminary form is entirely accurate.
B194: Freedom of Information and Protection of Privacy
B195: The information on this form and any information you provide to us in the future related to this form is collected under the authority of the Agriculture Financial Services Act and the Freedom of Information and Protection of Privacy Act (the FOIP Act). The collected information, whether personal information or business information, will be used: (i) to evaluate your eligibility for the program to which this form relates; (ii) for the administration of the program; and/ or (iii) for the administration of any other AFSC program or benefit in which you participate. Your personal information is subject to the provisions of the FOIP Act. By signing this form below, you are providing your consent to AFSC disclosing and sharing the information contained on this form, whether personal information or business information, or any other information that will be provided in the future by you or your authorized representative, to the following third parties: Alberta Agriculture and Forestry, Agriculture and Agri-Food Canada, Canada Revenue Agency and Statistics Canada. You consent that such disclosed and shared personal information and business information may be used in the following ways: (i) for the administration of all current and future AFSC federal and provincial programs related to agriculture, AFSC lending programs and AFSC insurance programs; (ii) for AFSC, federal and provincial policy and program development; and (iii) AFSC, federal, and provincial policy and program evaluation; (iv) for research and statistical development; and (v) for statistical purposes. If you have any questions about this form and the collection and use of your information, please contact the AFSC Client Contact Centre, 5718 - 56 Avenue, Lacombe AB T4L 1B1, 1.877.899.2372.
B196: Print Name | D196: Client Signature | H196: Date | I196: 2023-04-26

Sheet Worksheet (blank) template
D1: Fiscal Period: | E1: Year | G1: Month | I1: Day
B4: Business Name | D4: Identification Number | F4: Subscription | H4: AgriStability PIN | J4: Year
E8: Financial Statements: Statement of Income (Loss) | H8: Net Income (Loss) for Income Tax Purposes
B9: Revenue
D11: T1163 | F11: Opening | H11: Closing
B12: Commodity Sales and Program Payments | D12: Code | E12: Accrual + | F12: Receivables | G12: - | H12: Receivables | I12: = | J12: Cash/Tax
D13: =IF(ISBLANK(B13),"",VLOOKUP(B13,'Tax Codes'!$A$2:$B$305,2,FALSE)) ->  | J13: =(E13+F13-H13) -> 0
D14: =IF(ISBLANK(B14),"",VLOOKUP(B14,'Tax Codes'!$A$2:$B$305,2,FALSE)) ->  | J14: =(E14+F14-H14) -> 0
D15: =IF(ISBLANK(B15),"",VLOOKUP(B15,'Tax Codes'!$A$2:$B$305,2,FALSE)) ->  | J15: 0
D16: =IF(ISBLANK(B16),"",VLOOKUP(B16,'Tax Codes'!$A$2:$B$305,2,FALSE)) ->  | J16: 0
D17: =IF(ISBLANK(B17),"",VLOOKUP(B17,'Tax Codes'!$A$2:$B$305,2,FALSE)) ->  | J17: 0
D18: =IF(ISBLANK(B18),"",VLOOKUP(B18,'Tax Codes'!$A$2:$B$305,2,FALSE)) ->  | J18: 0
D19: =IF(ISBLANK(B19),"",VLOOKUP(B19,'Tax Codes'!$A$2:$B$305,2,FALSE)) ->  | J19: 0
D20: =IF(ISBLANK(B20),"",VLOOKUP(B20,'Tax Codes'!$A$2:$B$305,2,FALSE)) ->  | J20: 0
D21: =IF(ISBLANK(B21),"",VLOOKUP(B21,'Tax Codes'!$A$2:$B$305,2,FALSE)) ->  | J21: 0
D22: =IF(ISBLANK(B22),"",VLOOKUP(B22,'Tax Codes'!$A$2:$B$305,2,FALSE)) ->  | J22: 0
D23: =IF(ISBLANK(B23),"",VLOOKUP(B23,'Tax Codes'!$A$2:$B$305,2,FALSE)) ->  | J23: 0
D24: =IF(ISBLANK(B24),"",VLOOKUP(B24,'Tax Codes'!$A$2:$B$305,2,FALSE)) ->  | J24: 0
D25: =IF(ISBLANK(B25),"",VLOOKUP(B25,'Tax Codes'!$A$2:$B$305,2,FALSE)) ->  | J25: 0
D26: =IF(ISBLANK(B26),"",VLOOKUP(B26,'Tax Codes'!$A$2:$B$305,2,FALSE)) ->  | J26: 0
D27: =IF(ISBLANK(B27),"",VLOOKUP(B27,'Tax Codes'!$A$2:$B$305,2,FALSE)) ->  | J27: 0
D28: =IF(ISBLANK(B28),"",VLOOKUP(B28,'Tax Codes'!$A$2:$B$305,2,FALSE)) ->  | J28: 0
D29: =IF(ISBLANK(B29),"",VLOOKUP(B29,'Tax Codes'!$A$2:$B$305,2,FALSE)) ->  | J29: 0
D30: =IF(ISBLANK(B30),"",VLOOKUP(B30,'Tax Codes'!$A$2:$B$305,2,FALSE)) ->  | J30: 0
D31: =IF(ISBLANK(B31),"",VLOOKUP(B31,'Tax Codes'!$A$2:$B$305,2,FALSE)) ->  | J31: 0
D32: =IF(ISBLANK(B32),"",VLOOKUP(B32,'Tax Codes'!$A$2:$B$305,2,FALSE)) ->  | J32: 0
D33: =IF(ISBLANK(B33),"",VLOOKUP(B33,'Tax Codes'!$A$2:$B$305,2,FALSE)) ->  | J33: 0
D34: =IF(ISBLANK(B34),"",VLOOKUP(B34,'Tax Codes'!$A$2:$B$305,2,FALSE)) ->  | J34: 0
D35: =IF(ISBLANK(B35),"",VLOOKUP(B35,'Tax Codes'!$A$2:$B$305,2,FALSE)) ->  | J35: 0
B36: Total A | E36: =SUM(E13:E35) -> 0 | F36: =SUM(F13:F35) -> 0 | H36: =SUM(H13:H35) -> 0 | J36: =SUM(J13:J35) -> 0
F38: Opening | H38: Closing
B39: Other Farming Income | D39: Line | E39: Accrual + | F39: Receivables | G39: - | H39: Receivables | I39: = | J39: Cash/Tax
B40: Other program payments | D40: 9540 | J40: =(E40+F40-H40) -> 0
B41: Business Risk Management (BRM) and disaster assistance program payments | D41: 9544 | J41: =(E41+F41-H41) -> 0
B42: Resales, Rebates, GST/HST for allowable exp | D42: 9574 | J42: 0
B43: Resales, Rebates, GST/HST for non-allowable expenses | D43: 9575 | J43: 0
B44: Agricultural contract work | D44: 9601 | J44: 0
B45: Patronage dividends | D45: 9605 | J45: 0
B46: Interest | D46: 9607 | J46: 0
B47: Gravel | D47: 9610 | J47: 0
B48: Trucking (farm - related only) | D48: 9611 | J48: 0
B49: Resales of commodities purchased | D49: 9612 | J49: 0
B50: Leases (gas, oil well, surface, etc.) | D50: 9613 | J50: 0
B51: Machine rentals | D51: 9614 | J51: 0
B52: Other (specify) | D52: 9600 | J52: 0
J53: 0
J54: 0
J55: =(E55+F55-H55) -> 0
J56: 0
B57: Total B | E57: =SUM(E40:E56) -> 0 | F57: =SUM(F40:F56) -> 0 | H57: =SUM(H40:H56) -> 0 | J57: =SUM(J40:J56) -> 0
B59: Total Revenue (Total A + Total B) | E59: =(E36+E57) -> 0 | F59: =(F36+F57) -> 0 | H59: =(H36+H57) -> 0 | J59: =(J36+J57) -> 0
B61: AB3007 | I61: Form A5013-01
B64: Inventory
G65: Opening | I65: Closing
E66: Accrual | G66: Inventories | I66: Inventories | J66: Cash/Tax
B67: Opening Inventory | G67: =-E67 -> 0 | J67: =(E67+G67) -> 0
B68: Closing Inventory | I68: =-E68 -> 0 | J68: =(E68+I68) -> 0
B70: Change in Inventory | E70: =E68-E67 -> 0 | G70: =G68-G67 -> 0 | I70: =(I68-I67) -> 0 | J70: =(J68-J37) -> 0
B74: Expenses
B76: Commodity Purchases and | D76: T1163 | F76: Opening | G76: Closing | H76: Closing | I76: Opening
B77: Repayment of Program Benefits | D77: Code | E77: Accrual | F77: + Payables | G77: + Prepaids | H77: - Payables | I77: - Prepaids | J77: Cash/Tax
B78: Point of Sale Adjustments | D78: 575 | J78: =E78+F78+G78-H78-I78 -> 0
D79: =IF(ISBLANK(B79),"",VLOOKUP(B79,'Tax Codes'!$A$2:$B$305,2,FALSE)) ->  | J79: =E79+F79+G79-H79-I79 -> 0
D80: =IF(ISBLANK(B80),"",VLOOKUP(B80,'Tax Codes'!$A$2:$B$305,2,FALSE)) ->  | J80: 0
D81: =IF(ISBLANK(B81),"",VLOOKUP(B81,'Tax Codes'!$A$2:$B$305,2,FALSE)) ->  | J81: 0
D82: =IF(ISBLANK(B82),"",VLOOKUP(B82,'Tax Codes'!$A$2:$B$305,2,FALSE)) ->  | J82: 0
D83: =IF(ISBLANK(B83),"",VLOOKUP(B83,'Tax Codes'!$A$2:$B$305,2,FALSE)) ->  | J83: 0
D84: =IF(ISBLANK(B84),"",VLOOKUP(B84,'Tax Codes'!$A$2:$B$305,2,FALSE)) ->  | J84: 0
D85: =IF(ISBLANK(B85),"",VLOOKUP(B85,'Tax Codes'!$A$2:$B$305,2,FALSE)) ->  | J85: 0
D86: =IF(ISBLANK(B86),"",VLOOKUP(B86,'Tax Codes'!$A$2:$B$305,2,FALSE)) ->  | J86: 0
D87: =IF(ISBLANK(B87),"",VLOOKUP(B87,'Tax Codes'!$A$2:$B$305,2,FALSE)) ->  | J87: 0
D88: =IF(ISBLANK(B88),"",VLOOKUP(B88,'Tax Codes'!$A$2:$B$305,2,FALSE)) ->  | J88: 0
D89: =IF(ISBLANK(B89),"",VLOOKUP(B89,'Tax Codes'!$A$2:$B$305,2,FALSE)) ->  | J89: 0
D90: =IF(ISBLANK(B90),"",VLOOKUP(B90,'Tax Codes'!$A$2:$B$305,2,FALSE)) ->  | J90: 0
D91: =IF(ISBLANK(B91),"",VLOOKUP(B91,'Tax Codes'!$A$2:$B$305,2,FALSE)) ->  | J91: 0
D92: =IF(ISBLANK(B92),"",VLOOKUP(B92,'Tax Codes'!$A$2:$B$305,2,FALSE)) ->  | J92: 0
D93: =IF(ISBLANK(B93),"",VLOOKUP(B93,'Tax Codes'!$A$2:$B$305,2,FALSE)) ->  | J93: 0
D94: =IF(ISBLANK(B94),"",VLOOKUP(B94,'Tax Codes'!$A$2:$B$305,2,FALSE)) ->  | J94: 0
D95: =IF(ISBLANK(B95),"",VLOOKUP(B95,'Tax Codes'!$A$2:$B$305,2,FALSE)) ->  | J95: 0
D96: =IF(ISBLANK(B96),"",VLOOKUP(B96,'Tax Codes'!$A$2:$B$305,2,FALSE)) ->  | J96: 0
D97: =IF(ISBLANK(B97),"",VLOOKUP(B97,'Tax Codes'!$A$2:$B$305,2,FALSE)) ->  | J97: 0
B98: Total C | E98: =SUM(E78:E97) -> 0 | F98: =SUM(F78:F97) -> 0 | G98: 0 | H98: 0 | I98: 0 | J98: 0
F100: Opening | G100: Closing | H100: Closing | I100: Opening
B101: Allowable Expenses | D101: Line | E101: Accrual | F101: + Payables | G101: + Prepaids | H101: - Payables | I101: - Prepaids | J101: = Cash/Tax
B102: Containers and twine | D102: 9661 | J102: =(E102+F102+G102-H102-I102) -> 0
B103: Fertilizers and soil supplements | D103: 9662 | J103: =(E103+F103+G103-H103-I103) -> 0
B104: Pesticides and chemical treatments | D104: 9663 | J104: 0
B105: Insurance premiums (crop or production) | D105: 9665 | J105: 0
B106: Veterinary fees, medicine, and breeding fees | D106: 9713 | J106: 0
B107: Minerals and salts | D107: 9714 | J107: 0
B108: Machinery (gasoline, diesel fuel, oil) | D108: 9764 | J108: 0
B109: Electricity | D109: 9799 | J109: 0
B110: Freight and shipping | D110: 9801 | J110: 0
B111: Heating fuel | D111: 9802 | J111: 0
B112: Arm's length salaries | D112: 9815 | J112: 0
B113: Storage and drying | D113: 9822 | J113: 0
B114: Commissions and levies | D114: 9836 | J114: 0
B115: Private insurance premiums for commodities | D115: 9953 | J115: 0
J116: 0
J117: =(E117+F117+G117-H117-I117) -> 0
J118: =(E118+F118+G118-H118-I118) -> 0
B119: Total D | E119: =SUM(E102:E118) -> 0 | F119: 0 | G119: 0 | H119: 0 | I119: 0 | J119: 0
F121: Opening | G121: Closing | H121: Closing | I121: Opening
B122: Non-Allowable Expenses | D122: Line | E122: Accrual | F122: + Payables | G122: + Prepaids | H122: - Payables | I122: - Prepaids | J122: = Cash/Tax
B123: Machinery (repairs, licenses, insurance) | D123: 9760 | J123: =(E123+F123+G123-H123-I123) -> 0
B124: Machinery lease/rental | D124: 9765 | J124: =(E124+F124+G124-H124-I124) -> 0
B125: Advertising and promotion costs | D125: 9792 | J125: 0
B126: Building and fence repairs | D126: 9795 | J126: 0
B127: Land clearing and draining | D127: 9796 | J127: 0
B128: Agricultural contract work | D128: 9798 | J128: 0
B129: Other insurance premiums | D129: 9804 | J129: 0
B130: Interest (real estate, mortgage, other) | D130: 9805 | J130: 0
B131: Memberships/subscription fees | D131: 9807 | J131: 0
B132: Office expenses | D132: 9808 | J132: 0
B133: Legal and accounting fees | D133: 9809 | J133: 0
B134: Property taxes | D134: 9810 | J134: 0
B135: Rent (land, buildings, pastures) | D135: 9811 | J135: 0
B136: Non-arm's length salaries | D136: 9816 | J136: 0
B137: Motor vehicle expenses | D137: 9819 | J137: 0
B138: Small tools | D138: 9820 | J138: 0
B139: Soil testing | D139: 9821 | J139: 0
B140: Licenses/permits | D140: 9823 | J140: 0
B141: Telephone | D141: 9824 | J141: 0
B142: Quota rental (tobacco, dairy) | D142: 9825 | J142: 0
B143: Gravel | D143: 9826 | J143: 0
B144: Purchases of commodities resold | D144: 9827 | J144: 0
B145: Motor vehicle interest and leasing costs | D145: 9829 | J145: 0
B146: Other (specify) | D146: 9896 | J146: 0
J147: 0
J148: 0
J149: 0
J150: 0
J151: 0
J152: 0
B153: Total E | E153: =SUM(E123:E152) -> 0 | F153: =SUM(F123:F152) -> 0 | G153: 0 | H153: 0 | I153: 0 | J153: 0
B155: Total Expense (Total C + Total D + Total E) | E155: =(E98+E119+E153) -> 0 | F155: =(F98+F119+F153) -> 0 | G155: 0 | H155: 0 | I155: 0 | J155: 0
B158: Other Adjustments | E158: Accrual | I158: Cash/Tax
C159: ` | E159: Add | F159: Deduct | I159: Add | J159: Deduct
B160: Depreciation
B161: Gain on sale
B162: Loss on sale
B163: Dividend Income
B169: Taxable capital gains | D169: 9600
B170: Allowance on eligible capital property | D170: 9935
B171: Capital cost allowance | D171: 9936
B172: Mandatory Inventory Adjustment Prior Year | D172: 9937
B173: Optional Inventory Adjustment Prior Year | D173: 9938
B174: Optional Inventory Adjustment Current Year | D174: 9941
B175: Mandatory Inventory Adjustment Current Year | D175: 9942
B182: Total Other Adjustments | E182: =SUM(E160:E180) -> 0 | F182: =-SUM(F160:F180) -> 0 | I182: =SUM(I160:I180) -> 0 | J182: =-SUM(J160:J180) -> 0
B185: Accrual Income/Loss | H185: Cash Income/Loss
B187: Worksheet | E187: =(E59+E70-E155+E182+F182) -> 0 | H187: Worksheet | J187: =(J59+J70-J155+J182+I182) -> 0
B188: Income (Loss) before Income Taxes | H188: T2 (Sch 1)
B189: Difference | E189: =E187-E188 -> 0 | H189: Difference | J189: =J187-J188 -> 0
B191: Disclaimer of Use
B192: The 2024 Corporate Accrual to Tax Conversion Worksheet is a preliminary form containing RC4060 codes from 2023. The 2024 Corporate Accrual to Tax Conversion Worksheet is subject to change following the release of the 2024 RC4060 commodity and program payment codes as provided by the Canadian Revenue Agency (CRA). The CRA release date for RC4060 codes is unknown. The form will be updated following the release of RC4060 codes. AFSC does not warrant or represent that the information within the preliminary form is entirely accurate.
B194: Freedom of Information and Protection of Privacy
B195: The information on this form and any information you provide to us in the future related to this form is collected under the authority of the Agriculture Financial Services Act and the Freedom of Information and Protection of Privacy Act (the FOIP Act). The collected information, whether personal information or business information, will be used: (i) to evaluate your eligibility for the program to which this form relates; (ii) for the administration of the program; and/ or (iii) for the administration of any other AFSC program or benefit in which you participate. Your personal information is subject to the provisions of the FOIP Act. By signing this form below, you are providing your consent to AFSC disclosing and sharing the information contained on this form, whether personal information or business information, or any other information that will be provided in the future by you or your authorized representative, to the following third parties: Alberta Agriculture and Forestry, Agriculture and Agri-Food Canada, Canada Revenue Agency and Statistics Canada. You consent that such disclosed and shared personal information and business information may be used in the following ways: (i) for the administration of all current and future AFSC federal and provincial programs related to agriculture, AFSC lending programs and AFSC insurance programs; (ii) for AFSC, federal and provincial policy and program development; and (iii) AFSC, federal, and provincial policy and program evaluation; (iv) for research and statistical development; and (v) for statistical purposes. If you have any questions about this form and the collection and use of your information, please contact the AFSC Client Contact Centre, 5718 - 56 Avenue, Lacombe AB T4L 1B1, 1.877.899.2372.
B196: Print Name | D196: Client Signature | H196: Date | I196: 2023-04-26

Sheet Tax Codes
A1: Commodity and Allowable Program Payment Tax Codes | B1: Code
A2: (CFIA) Payment for allowable commodities | B2: 663
A3: (CFIA) Payment for other amounts | B3: 665
A4: (CFIA) Payment for supply managed commodities | B4: 664
A5: 2021 CAN-AB Hog Recovery Initiative | B5: 778
A6: 2021 CAN-AB Livestock Feed Assist. Initiative (Allowable) | B6: 776
A7: 2021 CAN-AB Livestock Feed Assist. Initiative (Non-Allowable) | B7: 775
A8: AgriRecovery Bee Assistance Payments (allowable portion) | B8: 800
A9: AgriRecovery Drought Assist. Payments (Allowable) | B9: 774
A10: AgriRecovery Drought Assist. Payments (Non-Allowable) | B10: 773
A11: AgriRecovery Feed Assistance Payments (allowable portion) | B11: 801
A12: AgriRecovery Flood Assistance Payments (allowable portion) | B12: 802
A13: Alberta Spring Price Endorsement | B13: 495
A14: Alpacas | B14: 370
A15: Alternate Land Use Services (ALUS) | B15: 557
A16: Anise | B16: 101
A17: Apples | B17: 60
A18: Apricots | B18: 91
A19: Artichokes | B19: 160
A20: Arugula / Rocket | B20: 195
A21: Asparagus | B21: 161
A22: Barley | B22: 3
A23: Basil | B23: 102
A24: Beans (Dry Edible) | B24: 4
A25: Beans, Fresh | B25: 25
A26: Bedding Plants | B26: 132
A27: Bee By-Products | B27: 375
A28: Bees, Honey | B28: 374
A29: Bees, Leaf Cutter | B29: 312
A30: Beets | B30: 162
A31: Bison | B31: 350
A32: Blackberries | B32: 66
A33: Blueberries | B33: 67
A34: Bok Choi | B34: 163
A35: Borage | B35: 6
A36: Broccoflower | B36: 164
A37: Broccoli | B37: 165
A38: Brussels Sprouts | B38: 166
A39: Buckwheat | B39: 7
A40: Cabbage | B40: 167
A41: Camelina | B41: 282
A42: CAN Food Inspection Agency (CFIA) Payment for Non-Allowable commodities | B42: 587
A43: Canadian Agricultural Skills Service (CASS) | B43: 561
A44: Canadian Wheat Board Payments | B44: 2
A45: Canary Seed | B45: 8
A46: Cannabis | B46: 382
A47: Canola | B47: 10
A48: Cantaloupe | B48: 168
A49: Caraway Seed | B49: 103
A50: Carrots | B50: 169
A51: Cattle, Calves | B51: 719
A52: Cattle, Cows and Bulls | B52: 706
A53: Cattle, Custom Feedlot Operator Income (Itemized) - Other feed charges | B53: 576
A54: Cattle, Custom Feedlot Operator Income (Itemized) - Qualifying Feed | B54: 243
A55: Cattle, Custom Feedlot Operator Income (Non Itemized) - Qualifying Feed | B55: 246
A56: Cattle, Fat / Slaughter | B56: 720
A57: Cattle, Feeder | B57: 721
A58: Cattle, Livestock Owners Custom Feeding Expense (Itemized) - Other | B58: 572
A59: Cattle, Livestock Owners Custom Feeding Expense (Itemized) - Qualifying Feed and Protein Supplements | B59: 577
A60: Cattle, Livestock Owners Custom Feeding Expense (Non Itemized) | B60: 573
A61: Cattle, Prepared Feed - Other Feed Charges (Itemized) | B61: 570
A62: Cattle, Prepared Feed and Protein Supplements (Itemized) | B62: 46
A63: Cattle, Prepared Feed and Purchases (Non Itemized) | B63: 571
A64: Cattle, Purebred Breeding | B64: 722
A65: Cauliflower | B65: 170
A66: Celery | B66: 171
A67: Cherries (Sweet, Sour) | B67: 92
A68: Cherry Tomatoes, Greenhouse | B68: 233
A69: Chervil | B69: 158
A70: Chick Peas / Garbanzo Beans | B70: 23
A71: Chicken, Eggs (Non-Supply Managed) | B71: 589
A72: Chickens | B72: 366
A73: Chickens (Non-Supply Managed) | B73: 590
A74: Chickens, Eggs for Consumption | B74: 343
A75: Chickens, Eggs for Hatching | B75: 344
A76: Chinchilla | B76: 240
A77: Chinese Vegetables | B77: 173
A78: Chives | B78: 104
A79: Cilantro | B79: 105
A80: Collards | B80: 174
A81: Comfrey | B81: 106
A82: Coriander | B82: 107
A83: Corn | B83: 11
A84: Cover Crop Protection Program | B84: 473
A85: COVID-19 - AgriRecovery - Livestock set aside programs | B85: 699
A86: COVID-19 - Other assistance payments (allowable income) | B86: 687
A87: COVID-19 - Other assistance payments (non-allowable income) | B87: 688
A88: COVID-19 - Temporary foreign worker subsidy payments | B88: 686
A89: COVID-19 - Wage subsidy payments for arm's length salaries | B89: 684
A90: COVID-19 - Wage subsidy payments for non-arm's length salaries | B90: 685
A91: Cranberries | B91: 68
A92: Crop Insurance: Edible Horticulture | B92: 402
A93: Crop Insurance: Grains & Oilseeds | B93: 401
A94: Crop Insurance: Non Edible Horticulture | B94: 470
A95: Crop/Hail Insurance: Other Commodities, including livestock | B95: 463
A96: Cucumbers | B96: 175
A97: Cucumbers, Greenhouse | B97: 234
A98: Cull Breeding Swine Program | B98: 582
A99: Cumin | B99: 144
A100: Currants (Black, Red) | B100: 65
A101: Dairy Direct Payment Program (DDPP) | B101: 683
A102: Dairy Farm Investment Program (DFIP) | B102: 682
A103: Dairy Subsidies | B103: 435
A104: Deer | B104: 352
A105: Deferred bison | B105: 151
A106: Deferred Bovine Cattle | B106: 150
A107: Deferred deer | B107: 154
A108: Deferred elk | B108: 155
A109: Deferred goat | B109: 152
A110: Deferred horses for PMU sales | B110: 156
A111: Deferred other breeding animals | B111: 157
A112: Deferred sheep | B112: 153
A113: Dill | B113: 108
A114: Dogs (Kennels and Pet Breeding Excluded) | B114: 313
A115: Donkeys / Mules | B115: 367
A116: Ducks | B116: 332
A117: Echinacea | B117: 142
A118: Eggplant | B118: 176
A119: Elderberries | B119: 74
A120: Elk | B120: 353
A121: Elk Velvet | B121: 764
A122: Emus | B122: 373
A123: Endive | B123: 177
A124: Faba Beans | B124: 12
A125: Fennel | B125: 110
A126: Fenugreek | B126: 111
A127: Fiddleheads | B127: 179
A128: Field Peas | B128: 13
A129: Fireweed | B129: 377
A130: Fish Meal | B130: 263
A131: Flaxseed | B131: 14
A132: Flowers (Edible) | B132: 180
A133: Flowers and Ornamental Foliage | B133: 133
A134: Forage (Including Pellets, Silage) | B134: 264
A135: Forage Seed | B135: 15
A136: Fox | B136: 241
A137: Fruit Juice | B137: 81
A138: Fruits and Vegetables (Non-Edible) | B138: 134
A139: Garlic | B139: 113
A140: Geese | B140: 333
A141: Gherkins | B141: 221
A142: Gingko Biloba | B142: 380
A143: Ginseng | B143: 114
A144: Goats | B144: 354
A145: Gooseberries | B145: 69
A146: Grain (Pellets, Screenings, Silage) | B146: 39
A147: Grapefruit | B147: 82
A148: Grapes | B148: 83
A149: Green Peas | B149: 223
A150: Green Plan, Farm Based Program - Permanent cover practices | B150: 466
A151: Groundhogs / Hedgehogs | B151: 369
A152: Haskap | B152: 75
A153: Hemp | B153: 30
A154: Honey | B154: 129
A155: Horseradish | B155: 181
A156: Horses | B156: 316
A157: Kale | B157: 214
A158: Kenaf | B158: 317
A159: Khorasan Wheat / Kamut | B159: 36
A160: Kiwi Fruit | B160: 84
A161: Kohlrabi | B161: 182
A162: Lathyrus | B162: 40
A163: Lavender | B163: 379
A164: Leeks | B164: 183
A165: Lemon Balm | B165: 378
A166: Lemons | B166: 85
A167: Lentils | B167: 41
A168: Lettuce | B168: 184
A169: Lettuce, Greenhouse | B169: 235
A170: Livestock Feed Insurance Program | B170: 412
A171: Llamas | B171: 355
A172: Loganberries | B172: 70
A173: Lupins | B173: 42
A174: Manure | B174: 318
A175: Maple Products | B175: 130
A176: Marjoram | B176: 115
A177: Market Revenue Insurance (MRI): Edible Horticulture | B177: 411
A178: Market Revenue Insurance (MRI): Grains & Oilseeds | B178: 410
A179: Market Revenue Insurance (MRI): Non-Edible Horticulture | B179: 474
A180: Melons | B180: 185
A181: Milk and Cream (Cattle) | B181: 319
A182: Milk and Cream (Non-Supply Managed) | B182: 592
A183: Millet | B183: 43
A184: Mink | B184: 242
A185: Mint | B185: 116
A186: Mixed Grain | B186: 24
A187: Monarada | B187: 117
A188: Mushrooms (Including Spawn) | B188: 131
A189: Mustard Leaves | B189: 186
A190: Mustard Seed | B190: 44
A191: Nectarines | B191: 93
A192: Niger Seed / Niger Thistle | B192: 283
A193: Nuts (All) | B193: 140
A194: Oats | B194: 45
A195: Oilseed Radish | B195: 38
A196: Okra | B196: 227
A197: Onions | B197: 187
A198: Oranges | B198: 86
A199: Oregano | B199: 118
A200: Ostriches | B200: 371
... 105 more rows
